Workbook

Sheet Square
B1: Volume of an Open Box Problem
B3: This DIGMath module lets you investigate
B4: the calculus problem of finding
B5: the dimensions of the largest open box
C6: with a square base
B7: that can be made from a given amount of
B8: material for the sides and base.
A11: What is the area A of the cardboard used?
B12: (20 - 250 square inches) | E12: Area A = | F12: =D13 -> 78 | G12: sq in
D13: 78 | E13: =#REF!+D13*(#REF!-#REF!)/100 -> 
A16: The formula for the volume function V = | E16: (Ax - x3 )/4
M28: Select the length x of the base: x = | P28: =xMin+O30*dx -> 4.55 | Q28: inches
O30: 31 | P30: =Sheet2!H7+O30*(Sheet2!H8-Sheet2!H7)/100 -> 4.55
M32: The volume of this box is | P32: =(A*x0 - x0^3 )/4 -> 65.2 | Q32: cubic inches
M34: The value of the derivative is V' = | P34: =(A - 3*x0^2 )/4 -> 3.973125
A37: Click each item below for suggestions and investigations
C38: Item 1
C39: Item 2
C40: Item 3
A43: To access/download all the DIGMath Apps for Calculus
A44: Click this link: | C44: DIGMath for Calculus
A46: Created by: Sheldon P. Gordon
A47: Farmingdale State College
A48: Development of this module was supported by the
A49: NSF's Division of Undergraduate Education
A50: under grants DUE-0310123 and DUE-0442160.

Sheet Sheet2
B1: x | C1: f(x) | D1: f'(x)
A3: 0 | B3: =xMin -> 3.0 | C3: =(A*x-x^3)/4 -> 51.75 | D3: =(A-3*x^2)/4 -> 12.75
A4: 1 | B4: =B3+dx -> 3.1 | C4: =(A*x-x^3)/4 -> 52.38184375 | D4: =(A-3*x^2)/4 -> 12.523125
A5: 2 | B5: 3.1 | C5: =IF((A*x-x^3)/4<0,0,(A*x-x^3)/4) -> 53.00225 | D5: =IF(C5=0,0,(A-3*x^2)/4) -> 12.2925 | G5: delta x = | H5: =(xMax-xMin)/100 -> 0.05 | K5: =-xMax -> -8
A6: 3 | B6: 3.2 | C6: 53.61103125 | D6: 12.058125 | K6: =xMin -> 3
A7: 4 | B7: 3.2 | C7: 54.208 | D7: 11.82 | G7: xMin = | H7: 3 | I7: =C3 -> 51.75
A8: 5 | B8: 3.3 | C8: 54.79296875 | D8: 11.578125 | G8: xMax = | H8: =INT(SQRT(A)+0.1) -> 8 | I8: =C103 -> 28
A9: 6 | B9: 3.3 | C9: 55.36575 | D9: 11.3325
A10: 7 | B10: 3.4 | C10: 55.92615625 | D10: 11.083125
A11: 8 | B11: 3.4 | C11: 56.474 | D11: 10.83 | G11: Point
A12: 9 | B12: 3.5 | C12: 57.00909375 | D12: 10.573125 | G12: =x0 -> 4.55 | H12: 0
A13: 10 | B13: 3.5 | C13: 57.53125 | D13: 10.3125
A14: 11 | B14: 3.6 | C14: 58.04028125 | D14: 10.048125 | G14: Horizontal Line
A15: 12 | B15: 3.6 | C15: 58.536 | D15: 9.78 | G15: 0 | H15: 0
A16: 13 | B16: 3.7 | C16: 59.01821875 | D16: 9.508125 | G16: =G12 -> 4.55 | H16: 0
A17: 14 | B17: 3.7 | C17: 59.48675 | D17: 9.2325
A18: 15 | B18: 3.8 | C18: 59.94140625 | D18: 8.953125
A19: 16 | B19: 3.8 | C19: 60.382 | D19: 8.67
A20: 17 | B20: 3.9 | C20: 60.80834375 | D20: 8.383125
A21: 18 | B21: 3.9 | C21: 61.22025 | D21: 8.0925
A22: 19 | B22: 4.0 | C22: 61.61753125 | D22: 7.798125
A23: 20 | B23: 4.0 | C23: 62 | D23: 7.5 | G23: Point on curve
A24: 21 | B24: 4.1 | C24: 62.36746875 | D24: 7.198125 | I24: f'
A25: 22 | B25: 4.1 | C25: 62.71975 | D25: 6.8925 | F25: x0 = | G25: =x0 -> 4.55 | H25: =(A*x0-x0^3)/4 -> 65.17590625 | I25: =(A-3*x0^2)/4 -> 3.973125
A26: 23 | B26: 4.2 | C26: 63.05665625 | D26: 6.583125 | F26: y0 = | G26: =x0 -> 4.55 | H26: =H25 -> 65.17590625 | I26: =I25 -> 3.973125
A27: 24 | B27: 4.2 | C27: 63.378 | D27: 6.27 | G27: =y0 -> 4.55 | H27: 0 | I27: 0
A28: 25 | B28: 4.3 | C28: 63.68359375 | D28: 5.953125
A29: 26 | B29: 4.3 | C29: 63.97325 | D29: 5.6325
A30: 27 | B30: 4.4 | C30: 64.24678125 | D30: 5.308125
A31: 28 | B31: 4.4 | C31: 64.504 | D31: 4.98
A32: 29 | B32: 4.4 | C32: 64.74471875 | D32: 4.648125
A33: 30 | B33: 4.5 | C33: 64.96875 | D33: 4.3125
A34: 31 | B34: 4.5 | C34: 65.17590625 | D34: 3.973125
A35: 32 | B35: 4.6 | C35: 65.366 | D35: 3.63
A36: 33 | B36: =B35+dx -> 4.6 | C36: 65.53884375 | D36: 3.283125
A37: 34 | B37: 4.7 | C37: =IF((A*x-x^3)/4<0,0,(A*x-x^3)/4) -> 65.69425 | D37: =IF(C37=0,0,(A-3*x^2)/4) -> 2.9325
A38: 35 | B38: 4.7 | C38: 65.83203125 | D38: 2.578125
A39: 36 | B39: 4.8 | C39: 65.952 | D39: 2.22
A40: 37 | B40: 4.8 | C40: 66.05396875 | D40: 1.858125
A41: 38 | B41: 4.9 | C41: 66.13775 | D41: 1.4925
A42: 39 | B42: 4.9 | C42: 66.20315625 | D42: 1.123125
A43: 40 | B43: 5.0 | C43: 66.25 | D43: 0.75
A44: 41 | B44: 5.0 | C44: 66.27809375 | D44: 0.373125
A45: 42 | B45: 5.1 | C45: 66.28725 | D45: -0.0075
A46: 43 | B46: 5.1 | C46: 66.27728125 | D46: -0.391875
A47: 44 | B47: 5.2 | C47: 66.248 | D47: -0.78
A48: 45 | B48: 5.2 | C48: 66.19921875 | D48: -1.171875
A49: 46 | B49: 5.3 | C49: 66.13075 | D49: -1.5675
A50: 47 | B50: 5.3 | C50: 66.04240625 | D50: -1.966875
A51: 48 | B51: 5.4 | C51: 65.934 | D51: -2.37
A52: 49 | B52: 5.4 | C52: 65.80534375 | D52: -2.776875
A53: 50 | B53: 5.5 | C53: 65.65625 | D53: -3.1875
A54: 51 | B54: 5.5 | C54: 65.48653125 | D54: -3.601875
A55: 52 | B55: 5.6 | C55: 65.296 | D55: -4.02
A56: 53 | B56: 5.6 | C56: 65.08446875 | D56: -4.441875
A57: 54 | B57: 5.7 | C57: 64.85175 | D57: -4.8675
A58: 55 | B58: 5.7 | C58: 64.59765625 | D58: -5.296875
A59: 56 | B59: 5.8 | C59: 64.322 | D59: -5.73
A60: 57 | B60: 5.8 | C60: 64.02459375 | D60: -6.166875
A61: 58 | B61: 5.9 | C61: 63.70525 | D61: -6.6075
A62: 59 | B62: 5.9 | C62: 63.36378125 | D62: -7.051875
A63: 60 | B63: 6.0 | C63: 63 | D63: -7.5
A64: 61 | B64: 6.0 | C64: 62.61371875 | D64: -7.951875
A65: 62 | B65: 6.1 | C65: 62.20475 | D65: -8.4075
A66: 63 | B66: 6.1 | C66: 61.77290625 | D66: -8.866875
A67: 64 | B67: 6.2 | C67: 61.318 | D67: -9.33
A68: 65 | B68: =B67+dx -> 6.2 | C68: 60.83984375 | D68: -9.796875
A69: 66 | B69: 6.3 | C69: =IF((A*x-x^3)/4<0,0,(A*x-x^3)/4) -> 60.33825 | D69: =IF(C69=0,0,(A-3*x^2)/4) -> -10.2675
A70: 67 | B70: 6.3 | C70: 59.81303125 | D70: -10.741875
A71: 68 | B71: 6.4 | C71: 59.264 | D71: -11.22
A72: 69 | B72: 6.4 | C72: 58.69096875 | D72: -11.701875
A73: 70 | B73: 6.5 | C73: 58.09375 | D73: -12.1875
A74: 71 | B74: 6.5 | C74: 57.47215625 | D74: -12.676875
A75: 72 | B75: 6.6 | C75: 56.826 | D75: -13.17
A76: 73 | B76: 6.6 | C76: 56.15509375 | D76: -13.666875
A77: 74 | B77: 6.7 | C77: 55.45925 | D77: -14.1675
A78: 75 | B78: 6.7 | C78: 54.73828125 | D78: -14.671875
A79: 76 | B79: 6.8 | C79: 53.992 | D79: -15.18
A80: 77 | B80: 6.8 | C80: 53.22021875 | D80: -15.691875
A81: 78 | B81: 6.9 | C81: 52.42275 | D81: -16.2075
A82: 79 | B82: 6.9 | C82: 51.59940625 | D82: -16.726875
A83: 80 | B83: 7.0 | C83: 50.75 | D83: -17.25
A84: 81 | B84: 7.0 | C84: 49.87434375 | D84: -17.776875
A85: 82 | B85: 7.1 | C85: 48.97225 | D85: -18.3075
A86: 83 | B86: 7.1 | C86: 48.04353125 | D86: -18.841875
A87: 84 | B87: 7.2 | C87: 47.088 | D87: -19.38
A88: 85 | B88: 7.2 | C88: 46.10546875 | D88: -19.921875
A89: 86 | B89: 7.3 | C89: 45.09575 | D89: -20.4675
A90: 87 | B90: 7.3 | C90: 44.05865625 | D90: -21.016875
A91: 88 | B91: 7.4 | C91: 42.994 | D91: -21.57
A92: 89 | B92: 7.4 | C92: 41.90159375 | D92: -22.126875
A93: 90 | B93: 7.5 | C93: 40.78125 | D93: -22.6875
A94: 91 | B94: 7.5 | C94: 39.63278125 | D94: -23.251875
A95: 92 | B95: 7.6 | C95: 38.456 | D95: -23.82
A96: 93 | B96: 7.6 | C96: 37.25071875 | D96: -24.391875
A97: 94 | B97: 7.7 | C97: 36.01675 | D97: -24.9675
A98: 95 | B98: 7.7 | C98: 34.75390625 | D98: -25.546875
A99: 96 | B99: 7.8 | C99: 33.462 | D99: -26.13
A100: 97 | B100: =B99+dx -> 7.8 | C100: 32.14084375 | D100: -26.716875
A101: 98 | B101: =B100+dx -> 7.9 | C101: 30.79025 | D101: =IF(C101=0,0,(A-3*x^2)/4) -> -27.3075
A102: 99 | B102: =B101+dx -> 7.9 | C102: 29.41003125 | D102: -27.901875
A103: 100 | B103: =B102+dx -> 8.0 | C103: 28 | D103: -28.5
